bitfinex-derivatives/quotes_BTCF0:USTF0_20250720
["timestamp","ask_amount","ask_price","bid_price","bid_amount"]
[1752987145647,0.1752372,118050.0,118040.0,1.63374103]
[1752987145845,0.1752372,118050.0,118040.0,2.20934257]
[1752987150052,0.1752372,118050.0,118040.0,1.88934257]
[1752987150251,0.1752372,118050.0,118040.0,2.25934257]
[1752987157659,0.1752372,118050.0,118040.0,1.63374103]
[1752987157857,0.1752372,118050.0,118040.0,1.88934257]
[1752987158155,0.1752372,118050.0,118040.0,2.21934257]
[1752987159359,0.1752372,118050.0,118040.0,1.63374103]
[1752987159555,0.1752372,118050.0,118040.0,2.24934257]
[1752987163262,0.1752372,118050.0,118040.0,2.25934257]
[1752987168369,0.1752372,118050.0,118040.0,1.88934257]
[1752987168572,0.1752372,118050.0,118040.0,2.23934257]
[1752987168773,0.1752372,118050.0,118040.0,1.88934257]
[1752987169088,0.1752372,118050.0,118040.0,2.24934257]
[1752987170475,0.1752372,118050.0,118040.0,2.37714334]
[1752987170774,0.1752372,118050.0,118040.0,2.24934257]
[1752987173774,0.001,118050.0,118040.0,2.24934257]
[1752987173978,0.30145827,118070.0,118060.0,0.03048]
[1752987174174,0.35184231,118070.0,118060.0,1.46479434]
[1752987174375,0.37633231,118070.0,118060.0,1.46479434]
[1752987175081,0.35965827,118070.0,118060.0,1.52575602]
[1752987175297,0.48745904,118070.0,118060.0,1.52575602]
[1752987176781,0.49045904,118070.0,118060.0,1.52675602]
[1752987178685,0.49045904,118070.0,118060.0,1.46579434]
[1752987178885,0.49045904,118070.0,118060.0,1.52675602]
[1752987179079,0.49045904,118070.0,118060.0,1.46579434]
[1752987181387,0.36265827,118070.0,118060.0,1.46579434]
[1752987181588,0.49045904,118070.0,118060.0,1.46579434]
[1752987181790,0.49045904,118070.0,118060.0,1.33799357]
[1752987182699,0.49045904,118070.0,118060.0,1.16868077]
[1752987184489,0.49045904,118070.0,118060.0,1.33799357]
[1752987184890,0.49045904,118070.0,118060.0,1.04088]
[1752987185192,0.508158,118070.0,118060.0,1.16868077]
[1752987185583,0.508158,118070.0,118060.0,0.80788077]
[1752987187691,0.508158,118070.0,118060.0,0.97719357]
[1752987188194,0.508158,118070.0,118060.0,1.33799357]
[1752987188588,0.508158,118070.0,118060.0,0.97719357]
[1752987189088,0.508158,118070.0,118060.0,0.80788077]
[1752987189287,0.508158,118070.0,118060.0,1.33799357]
[1752987190293,0.49045904,118070.0,118060.0,1.33799357]
[1752987190490,0.49045904,118070.0,118060.0,1.2101928]
[1752987190693,0.49045904,118070.0,118060.0,1.33799357]
[1752987191191,0.49045904,118070.0,118060.0,1.2101928]
[1752987191393,0.49045904,118070.0,118060.0,1.16868077]
[1752987191789,0.49045904,118070.0,118060.0,0.20700077]
[1752987192090,0.50815904,118070.0,118060.0,0.05646]
[1752987192290,0.38035827,118070.0,118060.0,0.05646]
[1752987192491,0.50815904,118070.0,118060.0,0.08065]
[1752987192691,0.63595981,118070.0,118060.0,0.001]
[1752987192897,1.40363981,118070.0,118060.0,0.001]
[1752987193090,0.2555128,118060.0,118050.0,0.38394]
[1752987193290,0.52881218,118060.0,118050.0,0.38394]
[1752987193996,0.88961218,118060.0,118050.0,0.02314]
[1752987194294,0.2555271,118050.0,118040.0,0.12521558]
[1752987194497,0.38332787,118050.0,118040.0,0.0642539]
[1752987194896,0.4010216,118050.0,118040.0,0.0642539]
[1752987195199,0.38332787,118050.0,118040.0,0.0642539]
[1752987195392,0.38332787,118050.0,118040.0,0.0104439]
[1752987195393,0.40317242,118050.0,118040.0,0.0104439]
[1752987196495,1.00149242,118050.0,118040.0,0.0104439]
[1752987196896,1.00149242,118050.0,118040.0,0.0114439]
[1752987198896,1.80498748,118050.0,118040.0,1e-07]
[1752987199101,1.67718671,118050.0,118040.0,1e-07]
[1752987200300,1.67717439,118050.0,118040.0,1e-07]
[1752987200896,0.65382885,118050.0,118040.0,1e-07]
[1752987201106,0.29302885,118050.0,118040.0,0.0790001]
[1752987201400,0.27537165,118050.0,118040.0,0.0790001]
[1752987201699,0.40317242,118050.0,118040.0,0.20680087]
[1752987203193,0.40317242,118050.0,118040.0,0.56760087]
[1752987204202,0.40317242,118050.0,118040.0,0.73694237]
[1752987204900,0.27537165,118050.0,118040.0,0.6091416]
[1752987207300,0.27537165,118050.0,118040.0,0.4398001]
[1752987208201,0.27537165,118050.0,118040.0,0.6091416]
[1752987210695,0.27537165,118050.0,118040.0,0.77967915]
[1752987213297,0.27537165,118050.0,118040.0,0.6091416]
[1752987213502,0.27537165,118050.0,118040.0,0.77967915]
[1752987214805,0.27537165,118050.0,118040.0,0.6091416]
[1752987215006,0.29327226,118050.0,118040.0,0.6091416]
[1752987220716,0.29327226,118050.0,118040.0,0.77967915]
[1752987222015,0.29327226,118050.0,118040.0,0.6091416]
[1752987223817,0.29327226,118050.0,118040.0,0.77967915]
[1752987226922,0.42116642,118050.0,118040.0,0.86492992]
[1752987227116,0.29327226,118050.0,118040.0,0.6091416]
[1752987227317,0.42116642,118050.0,118040.0,0.86492992]
[1752987228121,0.29327226,118050.0,118040.0,0.6091416]
[1752987228322,0.29327226,118050.0,118040.0,0.6087116]
[1752987228509,0.29327226,118050.0,118040.0,0.73660576]
[1752987228716,0.42116642,118050.0,118040.0,0.73660576]
[1752987229121,0.40326581,118050.0,118040.0,0.73660576]
[1752987229323,0.42088459,118050.0,118040.0,0.73660576]
[1752987230023,0.40326581,118050.0,118040.0,0.73660576]
[1752987231522,0.40326581,118050.0,118040.0,1.37140576]
[1752987231822,0.40326581,118050.0,118040.0,1.35542576]
[1752987233828,0.40326581,118050.0,118040.0,0.4393701]
[1752987234028,0.40326581,118050.0,118040.0,0.56726426]
[1752987234223,0.001,118050.0,118040.0,0.9695116]
[1752987234545,0.1703272,118050.0,118040.0,1.6562616]
[1752987236932,0.1703272,118050.0,118040.0,1.57095387]
[1752987237532,0.1703272,118050.0,118040.0,1.50999219]
[1752987238036,0.1703272,118050.0,118040.0,1.58618782]
[1752987238265,0.1703272,118050.0,118040.0,1.56618782]
[1752987239336,0.001,118050.0,118040.0,1.56618782]
[1752987239539,0.001,118050.0,118040.0,1.73666841]
[1752987239836,0.001,118050.0,118040.0,1.56618782]
[1752987240838,0.1703271,118050.0,118040.0,1.56618782]
[1752987241634,0.1703271,118050.0,118040.0,1.48999219]
[1752987246041,0.001,118050.0,118040.0,1.48999219]
[1752987246341,0.1703271,118050.0,118040.0,1.48999219]
[1752987250937,0.1703271,118050.0,118040.0,0.76839219]
[1752987251137,0.1703271,118050.0,118040.0,1.48999219]
[1752987251939,0.1749471,118050.0,118040.0,1.48999219]
[1752987252941,0.1749471,118050.0,118040.0,0.76839219]
[1752987253145,0.1749471,118050.0,118040.0,1.48999219]
[1752987255243,0.1749471,118050.0,118040.0,1.39570723]
[1752987255546,0.1749471,118050.0,118040.0,1.56618782]
[1752987258947,0.1749471,118050.0,118040.0,1.65144375]
[1752987259347,0.1749471,118050.0,118040.0,1.34144375]
[1752987259563,0.1749471,118050.0,118040.0,1.08570723]
[1752987259746,0.1749471,118050.0,118040.0,1.67144375]
[1752987264760,0.1749471,118050.0,118040.0,1.35144375]
[1752987264958,0.1749471,118050.0,118040.0,1.65144375]
[1752987268959,0.1749471,118050.0,118040.0,1.29064375]
[1752987269158,0.1749471,118050.0,118040.0,1.65144375]
[1752987272267,0.1749471,118050.0,118040.0,1.36144375]
[1752987272463,0.1749471,118050.0,118040.0,1.30144375]
[1752987272664,0.1749471,118050.0,118040.0,1.62144375]
[1752987275369,0.1749471,118050.0,118040.0,1.04570723]
[1752987275569,0.1749471,118050.0,118040.0,1.35144375]
[1752987275772,0.1749471,118050.0,118040.0,1.66144375]
[1752987276672,0.1987971,118050.0,118040.0,1.66144375]
[1752987276870,0.2012571,118050.0,118040.0,1.66144375]
[1752987277265,0.2012571,118050.0,118040.0,1.30144375]
[1752987277568,0.2012571,118050.0,118040.0,1.63144375]
[1752987283177,0.2564371,118050.0,118040.0,1.63144375]
[1752987284574,0.2564371,118050.0,118040.0,1.30144375]
[1752987284770,0.2564371,118050.0,118040.0,1.93148375]
[1752987285072,0.2564371,118050.0,118040.0,2.23148375]
[1752987285276,0.2564371,118050.0,118040.0,1.32144375]
[1752987285475,0.2564371,118050.0,118040.0,1.68144375]
[1752987285976,0.2564371,118050.0,118040.0,2.30148375]
[1752987286878,0.2331471,118050.0,118040.0,2.30148375]
[1752987287379,0.2331471,118050.0,118040.0,1.68144375]
[1752987287575,0.2331471,118050.0,118040.0,2.30080375]
[1752987287974,0.2564371,118050.0,118040.0,2.30080375]
[1752987288482,0.2564371,118050.0,118040.0,1.68144375]
[1752987288780,0.2564371,118050.0,118040.0,2.30040375]
[1752987289584,0.2331471,118050.0,118040.0,2.30040375]
[1752987290584,0.2331471,118050.0,118040.0,2.22420812]
[1752987292486,0.2171171,118050.0,118040.0,2.22420812]
[1752987293088,0.1774071,118050.0,118040.0,2.22420812]
[1752987296689,0.1774071,118050.0,118040.0,2.30040375]
[1752987300690,0.2181271,118050.0,118040.0,2.30040375]
[1752987303686,0.2181271,118050.0,118040.0,1.57880375]
[1752987303989,0.2181271,118050.0,118040.0,2.30040375]
[1752987304185,0.38532536,118050.0,118040.0,1.99895399]
[1752987304423,0.38532536,118050.0,118040.0,1.83933809]
[1752987304591,0.38532536,118050.0,118040.0,1.14898246]
[1752987304791,0.38532536,118050.0,118040.0,1.76314246]
[1752987305394,0.38532536,118050.0,118040.0,1.93248396]
[1752987307791,0.2574571,118050.0,118040.0,1.93248396]
[1752987307996,0.38532536,118050.0,118040.0,1.93248396]
[1752987309002,0.2574571,118050.0,118040.0,1.93248396]
[1752987309593,0.38532536,118050.0,118040.0,2.06035222]
[1752987310995,0.38532536,118050.0,118040.0,1.89101072]
[1752987312293,0.38532536,118050.0,118040.0,1.14898246]
[1752987312499,0.38532536,118050.0,118040.0,1.76166246]
[1752987313098,0.38532536,118050.0,118040.0,1.70071836]
[1752987313299,0.403917,118050.0,118040.0,1.70071836]
[1752987314297,0.403917,118050.0,118040.0,1.08803836]
[1752987314499,0.403917,118050.0,118040.0,1.70015836]
[1752987315400,0.403917,118050.0,118040.0,1.5714501]
[1752987315907,0.403917,118050.0,118040.0,1.69931836]
[1752987316202,0.403917,118050.0,118040.0,1.08803836]
[1752987316407,0.403917,118050.0,118040.0,0.2593642]
[1752987316608,0.403917,118050.0,118040.0,0.1984201]
[1752987317204,0.403917,118050.0,118040.0,0.2141901]
[1752987319408,0.403917,118050.0,118040.0,0.2382601]
[1752987321305,0.88596874,118050.0,118040.0,0.2382601]
[1752987321503,1.013837,118050.0,118040.0,0.2382601]
[1752987324611,1.013837,118050.0,118040.0,0.0541901]
[1752987325412,1.013837,118050.0,118040.0,0.0769401]
[1752987326813,0.88596874,118050.0,118040.0,0.0769401]
[1752987327110,1.013837,118050.0,118040.0,0.0769401]
[1752987332124,1.013837,118050.0,118040.0,0.0541901]
[1752987334224,0.88596874,118050.0,118040.0,0.0541901]
[1752987334413,1.013837,118050.0,118040.0,0.0541901]
[1752987339621,0.88596874,118050.0,118040.0,0.0541901]
[1752987339814,1.013837,118050.0,118040.0,0.0541901]
[1752987344225,1.013837,118050.0,118040.0,0.0231401]
[1752987344426,1.013837,118050.0,118040.0,1e-07]
[1752987344634,0.961757,118050.0,118040.0,1e-07]
[1752987346426,0.97933681,118050.0,118040.0,1e-07]
[1752987347622,0.961757,118050.0,118040.0,0.3608001]
[1752987347822,1.010697,118050.0,118040.0,0.3833401]
[1752987348025,1.015307,118050.0,118040.0,0.3833401]
[1752987349832,1.015307,118050.0,118040.0,0.0225401]
[1752987350030,1.015307,118050.0,118040.0,0.3833401]
[1752987350718,1.015307,118050.0,118040.0,0.0225401]
[1752987350924,1.015307,118050.0,118040.0,0.3833401]
[1752987351432,1.03288777,118050.0,118040.0,0.3833401]
[1752987352331,1.015307,118050.0,118040.0,0.3833401]
[1752987352529,1.03288818,118050.0,118040.0,0.3833401]
[1752987352831,1.03288818,118050.0,118040.0,0.0225401]
[1752987353027,1.03288818,118050.0,118040.0,0.3833401]
[1752987353630,1.03288866,118050.0,118040.0,0.3833401]
[1752987356631,1.03288866,118050.0,118040.0,0.3991001]
[1752987360537,0.9050204,118050.0,118040.0,0.3991001]
[1752987360729,1.03288866,118050.0,118040.0,0.3991001]
[1752987361735,0.9050204,118050.0,118040.0,0.4147101]
[1752987362034,1.03288866,118050.0,118040.0,0.4147101]
[1752987363634,1.03288866,118050.0,118040.0,0.4375401]
[1752987363837,1.03288866,118050.0,118040.0,0.0767401]
[1752987367438,0.9050204,118050.0,118040.0,0.0767401]
[1752987367736,1.03288866,118050.0,118040.0,0.0767401]
[1752987371140,1.03288866,118050.0,118040.0,0.0539101]
[1752987386053,0.9050204,118050.0,118040.0,0.0539101]
[1752987386351,1.03288866,118050.0,118040.0,0.0539101]
[1752987388250,0.97933866,118050.0,118040.0,1e-07]
[1752987390653,0.97341866,118050.0,118040.0,1e-07]
[1752987391448,0.97341866,118050.0,118040.0,0.0225601]
[1752987391649,1.02195866,118050.0,118040.0,0.0225601]
[1752987391853,0.8940904,118050.0,118040.0,0.0225601]
[1752987392053,1.02671866,118050.0,118040.0,0.0225601]
[1752987395961,0.8988504,118050.0,118040.0,0.0225601]
[1752987396164,1.02671866,118050.0,118040.0,0.0225601]
[1752987398266,1.10128692,118050.0,118040.0,1e-07]
[1752987398786,1.46208692,118050.0,118040.0,1e-07]
[1752987400069,1.63151092,118050.0,118040.0,1e-07]
[1752987402770,1.46208692,118050.0,118040.0,1e-07]
[1752987409877,1.2063504,118050.0,118040.0,1e-07]
[1752987410080,1.46208692,118050.0,118040.0,1e-07]
[1752987411675,1.10128692,118050.0,118040.0,1e-07]
[1752987411977,1.46208692,118050.0,118040.0,1e-07]
[1752987417487,1.10128692,118050.0,118040.0,1e-07]
[1752987417679,1.46208692,118050.0,118040.0,1e-07]
[1752987422187,1.44450526,118050.0,118040.0,1e-07]
[1752987422385,1.46220834,118050.0,118040.0,1e-07]
[1752987434088,0.8396167,118050.0,118040.0,1e-07]
[1752987434293,1.33880844,118050.0,118040.0,0.0557101]
[1752987434495,1.33880844,118050.0,118040.0,0.0799901]
[1752987434793,1.36653844,118050.0,118040.0,0.0799901]
[1752987434994,1.4944067,118050.0,118040.0,0.0799901]
[1752987435195,1.1336067,118050.0,118040.0,0.0799901]
[1752987440100,1.4944067,118050.0,118040.0,0.0799901]
[1752987442008,1.1336067,118050.0,118040.0,0.0799901]
[1752987442812,0.87787018,118050.0,118040.0,0.0799901]
[1752987443011,1.1336067,118050.0,118040.0,0.0799901]
[1752987446707,0.5309267,118050.0,118040.0,0.0799901]
[1752987446912,1.00521844,118050.0,118040.0,0.20785836]
[1752987447407,1.00521844,118050.0,118040.0,0.0799901]
[1752987448015,0.87735018,118050.0,118040.0,0.0799901]
[1752987448312,1.00521844,118050.0,118040.0,0.0799901]
[1752987451114,0.87735018,118050.0,118040.0,0.0799901]
[1752987451411,0.21984018,118050.0,118040.0,1.01652662]
[1752987451617,0.21738018,118050.0,118040.0,1.17586812]
[1752987452214,0.1996771,118050.0,118040.0,1.17586812]
[1752987452414,0.1752971,118050.0,118040.0,1.34529212]
[1752987452609,0.1752971,118050.0,118040.0,1.17586812]
[1752987453215,0.1752971,118050.0,118040.0,0.9201316]
[1752987453419,0.1752971,118050.0,118040.0,1.17586812]
[1752987454120,0.1752971,118050.0,118040.0,0.9201316]
[1752987454320,0.1752971,118050.0,118040.0,1.17586812]
[1752987454517,0.1752971,118050.0,118040.0,0.9201316]
[1752987455017,0.1752971,118050.0,118040.0,1.17586812]
[1752987455217,0.30316536,118050.0,118040.0,1.17586812]
[1752987455616,0.1752971,118050.0,118040.0,1.17586812]
[1752987456543,0.1752971,118050.0,118040.0,0.86586812]
[1752987456918,0.1752971,118050.0,118040.0,0.6101316]
[1752987457118,0.1752971,118050.0,118040.0,0.86586812]
[1752987459522,0.1752971,118050.0,118040.0,1.22666812]
[1752987460820,0.001,118050.0,118040.0,1.39609212]
[1752987461020,0.2539812,118060.0,118050.0,0.2485171]
[1752987461323,0.2539812,118060.0,118050.0,0.9593171]
[1752987461523,0.2539812,118060.0,118050.0,1.21505362]
[1752987461824,0.2539812,118060.0,118050.0,0.9593171]
[1752987462024,0.2116499,118060.0,118050.0,0.9593171]
[1752987462225,0.2126499,118060.0,118050.0,1.21505362]
[1752987462423,0.2146499,118060.0,118050.0,1.21605362]
[1752987463023,0.2146499,118060.0,118050.0,1.13076932]
[1752987463325,0.1723208,118060.0,118050.0,1.13076932]
[1752987463525,0.1723208,118060.0,118050.0,1.19168576]
[1752987464230,0.1723208,118060.0,118050.0,0.9603171]
[1752987464430,0.1723208,118060.0,118050.0,1.13076932]
[1752987464931,0.1723208,118060.0,118050.0,0.9603171]
[1752987465130,0.1723208,118060.0,118050.0,1.13076932]
[1752987465329,0.1723208,118060.0,118050.0,1.75420932]
[1752987465533,0.1723208,118060.0,118050.0,1.81512576]
[1752987466430,0.1723208,118060.0,118050.0,1.98454176]
[1752987469237,0.1723208,118060.0,118050.0,1.81408954]
[1752987469435,0.1723208,118060.0,118050.0,1.98454176]
[1752987469833,0.1769108,118060.0,118050.0,1.98454176]
[1752987470337,0.1769108,118060.0,118050.0,1.92362532]
[1752987470532,0.1769108,118060.0,118050.0,1.7531731]
[1752987470836,0.1769108,118060.0,118050.0,1.92362532]
[1752987471837,0.1769108,118060.0,118050.0,2.28442532]
[1752987472144,0.2003508,118060.0,118050.0,2.28442532]
[1752987472634,0.1769108,118060.0,118050.0,2.28442532]
[1752987473835,0.1769108,118060.0,118050.0,2.11500932]
[1752987474135,0.1769108,118060.0,118050.0,2.17592576]
[1752987475040,0.1769108,118060.0,118050.0,2.11500932]
[1752987476131,0.1769108,118060.0,118050.0,2.17592576]
[1752987477439,0.1769108,118060.0,118050.0,2.00547354]
[1752987477628,0.1769108,118060.0,118050.0,2.17592576]
[1752987478740,0.1769108,118060.0,118050.0,1.45432576]
[1752987478937,0.1769108,118060.0,118050.0,2.17592576]
[1752987481142,0.1769108,118060.0,118050.0,1.65547354]
[1752987481447,0.2593608,118060.0,118050.0,0.86270644]
[1752987481741,0.42981302,118060.0,118050.0,1.65195354]
[1752987481940,0.2593608,118060.0,118050.0,1.65195354]
[1752987482140,0.42981302,118060.0,118050.0,0.80179]
[1752987482336,0.42981302,118060.0,118050.0,0.83877644]
[1752987482536,0.42981302,118060.0,118050.0,0.43903644]
[1752987482735,0.42981302,118060.0,118050.0,0.37812]
[1752987483035,0.51517144,118060.0,118050.0,0.40108]
[1752987484040,0.51517144,118060.0,118050.0,0.04028]
[1752987484340,0.51517144,118060.0,118050.0,0.40108]
[1752987484938,0.42989742,118060.0,118050.0,0.40108]
[1752987489142,0.42989742,118060.0,118050.0,0.41758]
[1752987490244,0.42989742,118060.0,118050.0,0.44146]
[1752987496048,0.42989742,118060.0,118050.0,0.08066]
[1752987497247,0.42989742,118060.0,118050.0,0.04046]
[1752987497448,0.42989742,118060.0,118050.0,0.001]
[1752987504954,0.5151973,118060.0,118050.0,0.001]
[1752987508561,0.89393827,118060.0,118050.0,0.001]
[1752987508860,0.89393827,118060.0,118050.0,1e-07]
[1752987510161,0.96178628,118060.0,118050.0,1e-07]
[1752987513459,0.97061099,118060.0,118050.0,1e-07]
[1752987513866,1.09852924,118060.0,118050.0,1e-07]
[1752987514067,0.97061099,118060.0,118050.0,1e-07]
[1752987514266,1.09852924,118060.0,118050.0,1e-07]
[1752987514467,0.97061099,118060.0,118050.0,1e-07]
[1752987514865,0.96178628,118060.0,118050.0,1e-07]
[1752987518774,0.70594978,118060.0,118050.0,1e-07]
[1752987518968,0.96178628,118060.0,118050.0,1e-07]
[1752987522274,0.70594978,118060.0,118050.0,1e-07]
[1752987522472,0.96178628,118060.0,118050.0,1e-07]
[1752987524469,0.70594978,118060.0,118050.0,1e-07]
[1752987524674,0.96178628,118060.0,118050.0,1e-07]
[1752987528780,0.60098628,118060.0,118050.0,1e-07]
[1752987528980,0.96178628,118060.0,118050.0,1e-07]
[1752987532278,0.34514978,118060.0,118050.0,1e-07]
[1752987532478,0.60098628,118060.0,118050.0,1e-07]
[1752987533089,0.96178628,118060.0,118050.0,1e-07]
[1752987534282,1.08970453,118060.0,118050.0,1e-07]
[1752987534788,0.72890453,118060.0,118050.0,1e-07]
[1752987534983,1.08970453,118060.0,118050.0,1e-07]
[1752987535184,0.96178628,118060.0,118050.0,1e-07]
[1752987541691,1.08970453,118060.0,118050.0,1e-07]
[1752987541985,0.72890453,118060.0,118050.0,1e-07]
[1752987542193,1.08970453,118060.0,118050.0,1e-07]
[1752987543792,0.96178628,118060.0,118050.0,1e-07]
[1752987548201,0.70594978,118060.0,118050.0,1e-07]
[1752987548498,0.96178628,118060.0,118050.0,1e-07]
[1752987556002,0.70594978,118060.0,118050.0,1e-07]
[1752987556245,0.96178628,118060.0,118050.0,1e-07]
[1752987556402,0.70594978,118060.0,118050.0,1e-07]
[1752987556605,0.96178628,118060.0,118050.0,1e-07]
[1752987558712,1.08970453,118060.0,118050.0,1e-07]
[1752987559206,0.2549515,118040.0,118030.0,0.49907644]
[1752987559407,1.116308,118040.0,118030.0,0.49907644]
[1752987559606,1.116308,118040.0,118030.0,0.62699469]
[1752987560199,1.116308,118040.0,118030.0,0.49907644]
[1752987560405,1.116308,118040.0,118030.0,0.62699469]
[1752987561311,1.116308,118040.0,118030.0,0.62899469]
[1752987561707,1.116308,118040.0,118030.0,0.62999469]
[1752987561908,1.117308,118040.0,118030.0,0.62999469]
[1752987566211,1.13607591,118040.0,118030.0,0.62999469]
[1752987566716,1.13607591,118040.0,118030.0,0.26919469]
[1752987566913,1.13607591,118040.0,118030.0,0.62999469]
[1752987572411,1.13607591,118040.0,118030.0,0.26919469]
[1752987572614,1.13607591,118040.0,118030.0,0.62999469]
[1752987573715,1.13607591,118040.0,118030.0,0.26919469]
[1752987573922,1.13607591,118040.0,118030.0,0.62999469]
[1752987574417,1.13607591,118040.0,118030.0,0.26919469]
[1752987574616,1.13607591,118040.0,118030.0,0.62999469]
[1752987576619,1.13607591,118040.0,118030.0,0.50207644]
[1752987578721,1.13607591,118040.0,118030.0,0.62999469]
[1752987580721,1.13607591,118040.0,118030.0,0.26919469]
[1752987580926,1.13607591,118040.0,118030.0,0.62999469]
[1752987584230,0.88023941,118040.0,118030.0,0.62999469]
[1752987584430,1.13607591,118040.0,118030.0,0.62999469]
[1752987584728,0.88023941,118040.0,118030.0,0.62999469]
[1752987585030,1.13607591,118040.0,118030.0,0.62999469]
[1752987585230,1.15407607,118040.0,118030.0,0.56907825]
[1752987586231,1.02615782,118040.0,118030.0,0.56907825]
[1752987586446,1.15407607,118040.0,118030.0,0.62999469]
[1752987587029,1.02615782,118040.0,118030.0,0.56907825]
[1752987588437,1.02615782,118040.0,118030.0,0.62999469]
[1752987588936,1.15407607,118040.0,118030.0,0.56907825]
[1752987590535,1.02615782,118040.0,118030.0,0.56907825]
[1752987590736,1.00738991,118040.0,118030.0,0.56907825]
[1752987592837,1.00738967,118040.0,118030.0,0.56907825]
[1752987595140,0.98938975,118040.0,118030.0,0.62999469]
[1752987596441,0.98938975,118040.0,118030.0,0.26919469]
[1752987596640,0.98938975,118040.0,118030.0,0.62999469]
[1752987598746,0.98938975,118040.0,118030.0,0.50207644]
[1752987599047,0.98938975,118040.0,118030.0,0.62999469]
[1752987600146,0.38386975,118040.0,118030.0,0.62999469]
[1752987600343,0.2559515,118040.0,118030.0,0.79935049]
[1752987600647,0.2162415,118040.0,118030.0,0.92726874]
[1752987600850,0.1753315,118040.0,118030.0,0.92726874]
[1752987601449,0.1753315,118040.0,118030.0,1.25726874]
[1752987601644,0.1753315,118040.0,118030.0,1.1963523]
[1752987601948,0.1753315,118040.0,118030.0,1.5571523]
[1752987602143,0.1753315,118040.0,118030.0,1.63329785]
[1752987602349,0.1753315,118040.0,118030.0,1.42923405]
[1752987603155,0.1753315,118040.0,118030.0,1.5571523]
[1752987605552,0.1753315,118040.0,118030.0,1.42923405]
[1752987606549,0.1703415,118040.0,118030.0,1.5571523]
[1752987608454,0.1703415,118040.0,118030.0,0.8355523]
[1752987608653,0.1703415,118040.0,118030.0,1.5571523]
[1752987609251,0.1703415,118040.0,118030.0,1.63329785]
[1752987610353,0.1703415,118040.0,118030.0,1.5571523]
[1752987610652,0.1703415,118040.0,118030.0,1.63329785]
[1752987613356,0.1703415,118040.0,118030.0,1.80273784]
[1752987614852,0.1703415,118040.0,118030.0,1.72659229]
[1752987615153,0.1703415,118040.0,118030.0,1.80273784]
[1752987615354,0.1703415,118040.0,118030.0,1.72659229]
[1752987615658,0.1703415,118040.0,118030.0,1.5571523]
[1752987615861,0.1703415,118040.0,118030.0,1.63329785]
[1752987617058,0.1703415,118040.0,118030.0,1.5571523]
[1752987617258,0.1703415,118040.0,118030.0,1.63329785]
[1752987618062,0.001,118040.0,118030.0,1.63329785]
[1752987618560,0.001,118040.0,118030.0,1.92499785]
[1752987619463,0.1703415,118040.0,118030.0,1.92499785]
[1752987620361,0.1703415,118040.0,118030.0,1.8488523]
[1752987620362,0.001,118040.0,118030.0,1.8488523]
[1752987620758,0.001,118040.0,118030.0,2.01829229]
[1752987621660,0.2116716,118050.0,118040.0,0.502638]
[1752987621860,0.2116716,118050.0,118040.0,1.61741956]
[1752987622059,0.2163416,118050.0,118040.0,1.61741956]
[1752987622266,0.2163416,118050.0,118040.0,1.87325606]
[1752987622860,0.2173416,118050.0,118040.0,1.87425606]
[1752987623469,0.001,118050.0,118040.0,1.87425606]
[1752987623665,0.1703271,118050.0,118040.0,1.87425606]
[1752987624361,0.1703271,118050.0,118040.0,1.87525606]
[1752987625171,0.1752571,118050.0,118040.0,1.86003327]
[1752987628269,0.1752571,118050.0,118040.0,1.60419677]
[1752987628568,0.1752571,118050.0,118040.0,2.15173327]
[1752987630074,0.1752571,118050.0,118040.0,1.89589677]
[1752987630258,0.1752571,118050.0,118040.0,2.15173327]
[1752987631068,0.1752571,118050.0,118040.0,1.29209677]
[1752987631270,0.38448535,118050.0,118040.0,1.71341502]
[1752987632170,0.38448535,118050.0,118040.0,1.58549677]
[1752987632371,0.38448535,118050.0,118040.0,1.84133327]
[1752987632772,0.38448535,118050.0,118040.0,0.81275527]
[1752987633074,0.2565671,118050.0,118040.0,0.42359527]
[1752987633372,0.38448535,118050.0,118040.0,0.42359527]
[1752987634174,0.38448535,118050.0,118040.0,0.3628]
[1752987635871,0.2565671,118050.0,118040.0,0.3628]
[1752987636073,0.38448535,118050.0,118040.0,0.3628]
[1752987639074,0.38448535,118050.0,118040.0,0.38626]
[1752987640484,0.2565671,118050.0,118040.0,0.38626]
[1752987640681,0.38448535,118050.0,118040.0,0.38626]
[1752987641175,0.38448535,118050.0,118040.0,0.3628]
[1752987641378,0.5124036,118050.0,118040.0,0.002]
[1752987642477,0.38448535,118050.0,118040.0,0.002]
[1752987642982,0.98760535,118050.0,118040.0,0.002]
[1752987648480,1.1155236,118050.0,118040.0,0.002]
[1752987650384,0.98760535,118050.0,118040.0,0.002]
[1752987650586,0.8596871,118050.0,118040.0,0.002]
[1752987650787,0.98760535,118050.0,118040.0,0.002]
[1752987651491,1.1155236,118050.0,118040.0,0.002]
[1752987651988,0.98760535,118050.0,118040.0,0.002]
[1752987652190,1.4763236,118050.0,118040.0,0.002]
[1752987652885,1.1155236,118050.0,118040.0,0.002]
[1752987656394,0.8596871,118050.0,118040.0,0.002]
[1752987656594,1.1155236,118050.0,118040.0,0.002]
[1752987662097,1.1336228,118050.0,118040.0,0.002]
[1752987668611,1.4944228,118050.0,118040.0,0.002]
[1752987669514,1.2385863,118050.0,118040.0,0.002]
[1752987669712,1.4944228,118050.0,118040.0,0.002]
[1752987670812,1.1336228,118050.0,118040.0,0.002]
[1752987673723,0.8777863,118050.0,118040.0,0.002]
[1752987674016,1.1336228,118050.0,118040.0,0.002]
[1752987682615,1.4944228,118050.0,118040.0,1e-07]
[1752987682822,0.2545559,118030.0,118020.0,0.58327458]
[1752987683115,0.98407415,118030.0,118020.0,0.89503458]
[1752987683322,0.98407415,118030.0,118020.0,0.91835458]
[1752987683621,0.98407415,118030.0,118020.0,0.79043633]
[1752987683821,0.98407415,118030.0,118020.0,0.91835458]
[1752987684117,0.98707415,118030.0,118020.0,0.94135458]
[1752987685222,0.98707415,118030.0,118020.0,0.88055931]
[1752987686423,0.38547415,118030.0,118020.0,0.88055931]
[1752987686617,0.98695415,118030.0,118020.0,0.75264106]
[1752987686823,0.98695415,118030.0,118020.0,0.88055931]
[1752987687623,0.98695415,118030.0,118020.0,0.94148981]
[1752987687821,0.98695415,118030.0,118020.0,0.75148981]
[1752987688623,0.98695415,118030.0,118020.0,0.69055931]
[1752987690824,0.98695415,118030.0,118020.0,0.56264106]
[1752987691026,0.98695415,118030.0,118020.0,0.69055931]
[1752987695130,1.00546087,118030.0,118020.0,0.69055931]
[1752987695335,1.00546087,118030.0,118020.0,0.75148843]
[1752987696627,1.00546087,118030.0,118020.0,0.62357018]
[1752987696834,1.00546087,118030.0,118020.0,0.75148843]
[1752987699936,1.00546087,118030.0,118020.0,0.62357018]
[1752987700335,1.00546087,118030.0,118020.0,0.53357018]
[1752987700835,1.00546087,118030.0,118020.0,0.44932106]
[1752987701334,1.00546087,118030.0,118020.0,0.51026138]
[1752987703837,1.00546087,118030.0,118020.0,0.53302138]